bitfinex-derivatives/quotes_ETHF0:USTF0_20250904
["timestamp","ask_amount","ask_price","bid_price","bid_amount"]
[1757013341549,0.4763,4283.3,4283.2,3.2078]
[1757013341750,0.5695,4282.9,4282.8,0.8464]
[1757013342143,0.3397,4283.4,4282.9,0.3739]
[1757013342342,0.816,4283.4,4283.3,0.8464]
[1757013343349,0.3397,4283.9,4283.4,0.3739]
[1757013343552,0.5695,4283.9,4283.8,0.8464]
[1757013343743,0.3397,4284.2,4283.8,0.8464]
[1757013343944,0.3397,4284.2,4283.5,0.80454]
[1757013343945,0.3397,4284.2,4283.9,0.3739]
[1757013344143,0.5695,4284.2,4284.1,0.8464]
[1757013344645,0.816,4284.2,4284.1,0.4725]
[1757013345346,0.238,4284.6,4283.7,0.4785]
[1757013345347,0.4763,4283.8,4283.7,0.4785]
[1757013345543,0.816,4283.8,4283.7,0.4785]
[1757013345743,0.816,4283.8,4283.7,0.7105]
[1757013346047,0.816,4283.8,4283.7,1.0844]
[1757013349349,0.816,4283.8,4282.8,3.2078]
[1757013349555,0.3499,4282.8,4282.3,3.2078]
[1757013349747,0.8273,4282.4,4282.3,3.4481]
[1757013349946,0.8273,4282.4,4282.3,0.2403]
[1757013358149,0.8273,4282.4,4282.0,0.3693]
[1757013358150,0.4774,4282.4,4281.6,3.5771]
[1757013358356,0.8273,4281.7,4281.6,3.4481]
[1757013360357,0.8273,4281.7,4281.6,3.8174]
[1757013360554,0.3499,4281.9,4281.6,3.6953]
[1757013360864,0.8273,4282.4,4282.3,0.8568]
[1757013361451,0.8273,4282.4,4282.3,0.4875]
[1757013362053,0.8273,4282.4,4282.3,0.8568]
[1757013362250,0.3499,4282.6,4282.4,0.3693]
[1757013362461,0.5954,4282.6,4282.5,0.8568]
[1757013362761,0.3499,4282.9,4282.8,0.8568]
[1757013362960,0.8334,4283.5,4283.4,0.4875]
[1757013363157,1.0653,4283.5,4283.4,0.6096]
[1757013363363,1.0653,4283.5,4282.8,0.65821]
[1757013363364,0.8552,4283.5,4282.8,0.6073]
[1757013363562,0.5954,4282.9,4282.8,1.0948]
[1757013363955,0.2455,4282.9,4282.8,1.0948]
[1757013364454,0.5954,4282.9,4282.8,1.0948]
[1757013364655,0.8273,4282.9,4282.8,1.0948]
[1757013365064,0.3499,4282.8,4282.7,0.238]
[1757013365361,0.5954,4282.8,4282.7,0.7255]
[1757013365760,0.5954,4282.8,4282.7,1.0948]
[1757013365957,0.3778,4283.5,4282.7,0.7255]
[1757013366152,0.8273,4283.4,4283.3,0.8568]
[1757013366358,3.2078,4283.9,4283.3,0.4875]
[1757013366560,0.2455,4283.5,4283.4,0.8568]
[1757013366760,0.8273,4283.5,4283.4,0.8568]
[1757013366962,0.9671,4283.5,4283.4,0.4875]
[1757013367364,0.3499,4283.4,4283.1,3.2078]
[1757013367556,0.8273,4283.2,4283.1,4.3026]
[1757013367758,0.8273,4283.8,4283.7,0.4875]
[1757013367965,0.5954,4283.8,4283.7,0.8568]
[1757013368165,0.3499,4284.1,4283.7,0.8568]
[1757013368463,3.2078,4284.4,4283.5,0.3853]
[1757013368464,4.0351,4284.4,4284.3,0.8568]
[1757013369366,0.8273,4284.4,4284.3,0.8568]
[1757013369856,0.5954,4284.4,4284.3,0.8568]
[1757013370057,0.2455,4284.4,4284.3,0.8568]
[1757013370365,35.8126,4285.0,4284.0,0.1473]
[1757013370669,0.8273,4284.9,4284.8,0.2403]
[1757013372061,0.8273,4284.9,4284.8,0.8568]
[1757013372867,0.3499,4285.4,4284.9,0.3693]
[1757013373065,0.5954,4285.4,4285.3,0.4875]
[1757013373366,0.5954,4285.4,4285.3,0.8568]
[1757013373569,0.8273,4285.4,4285.3,0.8568]
[1757013374469,0.8273,4285.4,4284.5,0.2403]
[1757013374470,0.8273,4284.6,4284.5,0.2403]
[1757013375464,0.3499,4284.9,4284.6,0.3693]
[1757013375663,0.8273,4284.9,4284.8,0.2403]
[1757013375863,0.8273,4284.9,4284.0,3.3551]
[1757013376061,0.3499,4284.8,4284.1,0.3693]
[1757013376265,0.5954,4284.2,4284.1,0.8568]
[1757013376467,0.8273,4284.2,4284.1,0.8568]
[1757013376970,0.8273,4284.2,4284.0,3.3551]
[1757013376971,0.3499,4284.1,4284.0,3.4458]
[1757013377170,0.8273,4284.1,4284.0,3.6861]
[1757013377470,0.8273,4284.1,4284.0,3.2078]
[1757013378370,0.4695,4283.7,4283.6,0.8322]
[1757013378565,0.8348,4283.7,4283.6,0.8322]
[1757013380462,0.1396,4283.5,4283.4,3.2078]
[1757013380667,0.9744,4283.5,4283.4,3.2078]
[1757013381468,0.9744,4283.5,4283.1,0.238]
[1757013381768,0.8348,4283.2,4283.1,0.8307]
[1757013381967,0.8348,4283.2,4283.1,0.4719]
[1757013382569,0.8348,4283.2,4282.7,0.3588]
[1757013382762,0.8348,4282.8,4282.7,0.2339]
[1757013383173,0.8348,4282.8,4282.6,3.2078]
[1757013383376,0.1396,4283.0,4282.1,3.2078]
[1757013383377,0.4695,4282.7,4282.1,3.2078]
[1757013383675,0.8348,4282.2,4282.1,3.2078]
[1757013385572,0.8348,4282.2,4281.5,0.3588]
[1757013388381,0.8348,4282.2,4280.8,0.42041]
[1757013388382,0.8348,4281.4,4280.8,3.2078]
[1757013388582,0.3653,4281.3,4280.8,3.2078]
[1757013388878,0.8348,4281.4,4281.3,0.2339]
[1757013389269,0.8348,4281.4,4281.3,0.4629]
[1757013389875,0.8348,4281.4,4281.0,0.3588]
[1757013389876,0.4695,4281.4,4281.0,0.3588]
[1757013390172,0.2255,4281.3,4281.2,0.2339]
[1757013390379,0.8348,4281.3,4281.2,0.2339]
[1757013391482,0.8348,4281.3,4281.2,0.8217]
[1757013391874,0.3653,4281.9,4281.2,0.4629]
[1757013392075,0.8348,4281.9,4281.8,0.2339]
[1757013392379,0.8348,4281.9,4281.3,0.3588]
[1757013393074,0.8348,4281.9,4281.8,0.2339]
[1757013394182,0.1396,4283.5,4281.8,0.8217]
[1757013394384,0.3653,4282.1,4281.9,0.3588]
[1757013394682,0.5908,4282.1,4282.0,0.8217]
[1757013395077,0.8348,4282.1,4282.0,0.4629]
[1757013395278,0.8348,4282.1,4282.0,0.8217]
[1757013395678,3.2078,4282.7,4282.0,0.9665]
[1757013395880,0.5908,4282.4,4282.3,0.8217]
[1757013396385,0.8348,4282.4,4282.3,0.2339]
[1757013396885,0.8348,4282.4,4282.3,0.8217]
[1757013397784,0.8348,4282.4,4282.3,0.4629]
[1757013397973,0.8348,4282.4,4282.3,0.2339]
[1757013398174,0.4695,4282.4,4281.6,0.3588]
[1757013398379,0.3653,4282.4,4281.6,0.59234]
[1757013398582,0.1396,4282.5,4281.6,0.59234]
[1757013398781,0.1396,4282.5,4281.6,0.77913]
[1757013398979,0.1396,4282.5,4281.6,0.3588]
[1757013399177,0.3653,4282.4,4281.6,0.77913]
[1757013399377,0.3653,4282.4,4282.3,0.2339]
[1757013399378,0.8348,4282.4,4282.3,0.2339]
[1757013401082,0.8348,4282.4,4282.3,0.4629]
[1757013401276,0.8348,4282.4,4282.3,0.8217]
[1757013401978,0.3653,4282.6,4282.4,0.3588]
[1757013402289,0.5908,4282.6,4282.5,0.8217]
[1757013402488,0.8348,4282.6,4282.5,0.8217]
[1757013402981,0.8348,4282.6,4282.5,0.2339]
[1757013405293,0.8348,4282.6,4282.5,0.4629]
[1757013405494,0.2255,4282.6,4282.5,0.9665]
[1757013405682,0.8348,4282.6,4282.5,0.2339]
[1757013407083,0.8348,4282.6,4282.5,0.8217]
[1757013407478,0.2255,4282.6,4282.5,0.8217]
[1757013407677,0.3653,4283.0,4282.6,0.4489]
[1757013407879,0.6046,4283.0,4282.9,0.4489]
[1757013408187,0.6046,4283.0,4282.9,0.7794]
[1757013408376,0.9689,4283.0,4282.9,0.4489]
[1757013408688,0.9689,4283.0,4282.9,0.22]
[1757013410385,0.4648,4282.1,4282.0,3.7583]
[1757013410589,0.798,4282.1,4282.0,2.9878]
[1757013412683,0.798,4282.1,4282.0,3.2078]
[1757013413087,0.798,4282.1,4282.0,0.4489]
[1757013413493,0.798,4282.1,4282.0,0.7794]
[1757013414194,0.3178,4282.5,4282.0,0.4489]
[1757013414393,0.5587,4282.1,4282.0,0.4489]
[1757013414585,0.798,4282.1,4282.0,0.4489]
[1757013414786,0.798,4282.1,4282.0,0.7794]
[1757013415187,0.798,4282.1,4282.0,0.4489]
[1757013415388,0.798,4282.1,4282.0,0.22]
[1757013415788,0.798,4281.7,4281.6,0.5505]
[1757013415991,0.798,4281.7,4281.6,0.7794]
[1757013416584,0.5725,4281.7,4281.6,0.7794]
[1757013417092,0.3332,4282.4,4281.6,0.4489]
[1757013417396,0.798,4282.4,4282.3,0.4489]
[1757013417588,0.798,4282.4,4282.3,0.7794]
[1757013418393,0.798,4282.4,4282.3,0.4489]
[1757013418890,3.2078,4282.6,4282.3,0.7794]
[1757013419090,4.0058,4282.6,4282.5,0.4489]
[1757013419286,0.5725,4281.7,4281.6,0.7794]
[1757013419699,0.1388,4282.5,4281.7,0.3305]
[1757013419893,0.798,4282.4,4282.3,0.22]
[1757013420093,0.798,4282.4,4282.0,0.3305]
[1757013420298,0.798,4282.4,4282.3,0.22]
[1757013421300,0.9368,4282.0,4281.6,0.3305]
[1757013421798,0.3332,4281.9,4281.8,0.22]
[1757013421994,0.1388,4281.0,4280.9,3.2078]
[1757013422294,0.9368,4281.0,4280.9,3.2078]
[1757013423200,0.9368,4281.0,4280.5,0.3305]
[1757013423392,0.798,4280.5,4280.4,3.9872]
[1757013424897,0.5725,4280.5,4280.4,3.9872]
[1757013426003,0.5725,4280.9,4280.8,0.7794]
[1757013426598,0.3332,4281.4,4280.8,0.7794]
[1757013426801,0.1388,4281.5,4280.8,0.7794]
[1757013426996,0.798,4280.9,4280.8,0.4489]
[1757013427199,0.9368,4280.5,4279.9,3.2078]
[1757013427496,0.2393,4280.8,4280.7,0.22]
[1757013427700,0.798,4280.8,4280.3,0.3305]
[1757013427894,0.798,4280.8,4280.0,0.1439]
[1757013427895,0.798,4280.8,4280.7,0.22]
[1757013428095,0.798,4280.8,4280.7,0.7794]
[1757013428795,0.798,4280.8,4280.7,0.4489]
[1757013428996,0.798,4280.8,4280.7,0.22]
[1757013429292,0.798,4280.8,4280.0,0.3819]
[1757013429491,0.798,4280.8,4280.1,0.3305]
[1757013430302,0.798,4280.8,4280.7,0.7794]
[1757013430601,0.5725,4280.8,4280.7,0.7794]
[1757013431798,0.3332,4281.4,4280.7,0.4489]
[1757013431995,0.2393,4281.6,4281.5,0.7794]
[1757013432194,0.3332,4281.8,4281.5,0.5928]
[1757013432402,0.5725,4282.0,4281.9,0.7794]
[1757013432591,0.798,4282.0,4281.9,0.7794]
[1757013433101,0.9368,4282.0,4281.9,0.22]
[1757013434099,0.798,4281.1,4281.0,3.4278]
[1757013434397,0.3332,4281.4,4281.0,3.8006]
[1757013434607,0.5725,4281.4,4281.3,0.7794]
[1757013435100,0.798,4281.4,4281.3,0.7794]
[1757013435494,0.798,4281.4,4281.3,0.4489]
[1757013435898,0.798,4281.4,4281.3,0.7794]
[1757013436299,3.3466,4282.0,4281.3,0.7794]
[1757013436502,3.3466,4282.0,4281.3,0.4489]
[1757013436503,0.1388,4282.0,4281.3,0.4489]
[1757013436703,0.3332,4282.1,4281.1,0.42038]
[1757013436704,0.5725,4282.1,4282.0,0.4489]
[1757013436905,0.5725,4282.1,4282.0,0.7794]
[1757013437106,0.798,4282.1,4282.0,0.7794]
[1757013437710,0.798,4282.1,4282.0,0.4489]
[1757013438104,0.798,4282.1,4282.0,0.7899]
[1757013439411,0.3492,4282.4,4282.0,0.4489]
[1757013439612,0.5842,4282.9,4282.8,0.4514]
[1757013439811,0.5842,4282.9,4282.8,0.7924]
[1757013440306,0.8143,4282.9,4282.8,0.7924]
[1757013441112,0.8143,4282.9,4282.8,0.4514]
[1757013443213,0.8143,4282.9,4282.8,0.7924]
[1757013444714,0.8143,4282.9,4282.8,0.4514]
[1757013444913,0.8143,4282.9,4282.8,0.2198]
[1757013445302,0.8143,4282.9,4282.8,0.7924]
[1757013445707,0.8143,4282.9,4282.8,0.4514]
[1757013446404,0.8143,4282.9,4282.1,3.2078]
[1757013446610,0.235,4282.2,4282.1,3.6592]
[1757013446809,0.5842,4282.2,4282.1,4.0002]
[1757013447113,0.235,4282.2,4282.1,4.0002]
[1757013447814,0.8143,4282.2,4282.1,4.0002]
[1757013448214,0.5842,4282.2,4282.1,4.0002]
[1757013448414,0.1321,4282.5,4282.1,3.6592]
[1757013448415,0.4813,4282.5,4282.1,3.6592]
[1757013448615,0.7163,4282.5,4282.4,0.7924]
[1757013448819,0.9464,4282.5,4282.4,0.7924]
[1757013449305,0.9464,4282.5,4282.4,0.2198]
[1757013449812,0.3492,4282.4,4282.1,3.2078]
[1757013450016,0.8143,4282.2,4282.1,3.4276]
[1757013450512,0.8143,4281.2,4281.1,3.6592]
[1757013450712,0.8143,4281.2,4281.1,3.4276]
[1757013451015,0.8143,4281.2,4281.1,0.2198]
[1757013453117,0.1321,4281.0,4280.9,0.2198]
[1757013453306,0.4651,4280.5,4280.4,0.7924]
[1757013453510,0.5972,4280.5,4280.3,3.2078]
[1757013453715,0.5972,4280.5,4279.8,3.2078]
[1757013453912,0.3492,4280.4,4279.8,3.2078]
[1757013454110,0.8143,4279.9,4279.8,3.6592]
[1757013456017,0.4651,4279.9,4279.5,0.34851395]
[1757013456219,0.8143,4279.6,4279.5,0.22731395]
[1757013456707,0.8143,4279.6,4279.5,0.00751395]
[1757013458515,1.0523,4279.6,4279.5,0.00751395]
[1757013461822,0.8143,4279.6,4279.5,0.22731395]
[1757013462020,1.0523,4279.6,4279.5,0.00751395]
[1757013468021,0.8143,4279.6,4279.5,0.44191395]
[1757013468220,0.8143,4279.6,4279.5,0.00751395]
[1757013468524,0.8143,4279.6,4279.5,0.21761395]
[1757013468915,0.8143,4279.6,4279.5,0.77931395]
[1757013469116,1.0523,4279.6,4279.5,0.44191395]
[1757013469723,1.0523,4279.6,4279.5,0.21761395]
[1757013471124,1.0523,4279.6,4279.5,0.00751395]
[1757013472520,0.5842,4279.6,4279.5,0.21761395]
[1757013472716,1.0498,4279.6,4279.5,0.77931395]
[1757013472921,1.0498,4279.6,4279.5,0.00751395]
[1757013477322,1.0498,4279.6,4279.5,0.21761395]
[1757013477528,0.8118,4279.6,4279.5,0.44191395]
[1757013477729,0.8118,4279.6,4279.5,0.77931395]
[1757013477730,1.0498,4279.6,4279.5,0.77931395]
[1757013478229,0.8174,4279.6,4279.5,0.77931395]
[1757013478627,1.0498,4279.6,4279.5,0.77931395]
[1757013480026,3.2078,4279.8,4279.5,0.77931395]
[1757013480229,0.1321,4280.5,4280.1,0.3374]
[1757013480230,0.32,4280.4,4280.1,0.3374]
[1757013480437,0.7826,4280.4,4280.3,0.2101]
[1757013480734,0.7826,4280.1,4280.0,0.7718]
[1757013481129,0.7826,4280.1,4280.0,0.4344]
[1757013481328,0.1343,4280.0,4279.5,0.00751395]
[1757013481528,0.7826,4279.6,4279.5,0.77931395]
[1757013482233,0.5502,4279.6,4279.5,0.77931395]
[1757013482833,0.7826,4279.6,4279.5,0.77931395]
[1757013484536,0.7826,4279.6,4279.5,0.21761395]
[1757013484935,0.7826,4279.6,4279.5,0.00751395]
[1757013485337,1.0206,4279.6,4279.5,0.00751395]
[1757013495452,1.0206,4279.6,4279.5,0.21761395]
[1757013496150,0.7826,4279.6,4279.5,0.77931395]
[1757013496346,1.0206,4279.6,4279.5,0.77931395]
[1757013499751,0.7826,4279.6,4279.5,0.77931395]
[1757013500353,3.2078,4280.4,4279.7,0.3131]
[1757013500654,3.6494,4280.4,4280.3,0.7697]
[1757013500955,3.9691,4280.4,4280.3,0.7697]
[1757013502053,3.9691,4280.4,4280.3,0.4566]
[1757013502249,3.9691,4280.4,4280.0,0.3131]
[1757013502449,3.9691,4280.4,4279.9,3.2078]
[1757013502755,0.7613,4280.3,4280.2,0.2284]
[1757013503347,0.5376,4280.3,4280.2,0.7697]
[1757013503547,0.7613,4280.3,4280.2,0.7697]
[1757013507446,0.7613,4280.3,4280.0,3.2078]
[1757013507652,0.8887,4280.0,4279.9,0.4566]
[1757013507854,0.7613,4280.0,4279.9,0.7697]
[1757013509153,0.5376,4280.3,4280.2,1.19017]
[1757013509357,3.7454,4280.9,4280.8,0.4566]
[1757013509555,3.7454,4280.9,4280.8,0.7697]
[1757013510055,0.6796,4281.3,4281.2,0.2284]
[1757013510358,0.1274,4280.0,4279.5,0.00751395]
[1757013510553,0.7613,4279.6,4279.5,0.00751395]
[1757013510753,4.15466708,4279.6,4279.5,0.00751395]
[1757013512152,0.7613,4278.4,4278.3,0.2284]
[1757013512354,0.7613,4278.4,4277.6,3.5209]
[1757013512355,0.3197,4277.9,4277.6,3.5209]
[1757013512655,0.7613,4277.9,4277.8,0.2284]
[1757013515253,0.7613,4277.9,4277.8,0.7697]
[1757013515563,0.9993,4277.9,4277.8,0.7697]
[1757013515958,0.7613,4277.8,4277.7,0.2284]
[1757013516258,0.1274,4277.5,4277.4,0.2284]
[1757013516459,0.569,4277.5,4277.4,0.2284]
[1757013516857,0.8887,4277.5,4276.6,3.4458]
[1757013517052,0.176,4277.4,4276.6,3.2078]
[1757013517252,0.2179,4276.7,4276.6,0.7697]
[1757013517462,0.5376,4276.7,4276.6,0.7697]
[1757013517656,0.7613,4276.7,4276.6,0.7697]
[1757013518556,0.7613,4276.7,4276.6,0.4566]
[1757013519364,0.7613,4276.7,4276.6,0.7697]
[1757013522062,0.238,4276.8,4276.6,0.4566]
[1757013522252,0.238,4276.8,4276.7,0.3131]
[1757013522458,0.4559,4276.8,4276.7,0.7697]
[1757013522764,0.5376,4276.8,4276.7,0.7697]
[1757013523465,0.7613,4276.8,4276.7,0.7697]
[1757013527369,0.7613,4276.8,4276.7,0.2284]
[1757013528169,0.424,4276.3,4276.2,0.208]
[1757013528366,0.424,4276.3,4275.7,3.2078]
[1757013528367,0.3317,4276.2,4275.7,3.5152]
[1757013528567,0.7557,4275.8,4275.7,3.9292]
[1757013531264,0.369,4276.5,4275.7,3.9292]
[1757013531265,0.3317,4276.1,4275.7,3.2078]
[1757013531469,0.5399,4276.1,4276.0,0.7214]
[1757013532773,0.7557,4276.1,4276.0,0.7214]
[1757013536270,0.2082,4276.2,4276.0,0.1312]
[1757013536470,0.3317,4276.4,4276.1,0.414]
[1757013536776,0.131,4276.5,4276.2,0.7214]
[1757013536777,0.5399,4276.3,4276.2,0.7214]
[1757013537471,0.7557,4276.3,4276.2,0.7214]
[1757013538476,0.5399,4276.3,4276.2,0.7214]
[1757013538676,0.2082,4276.3,4276.2,0.7214]
[1757013538876,0.7557,4276.3,4276.2,0.7214]
[1757013544177,3.2078,4276.8,4276.7,0.414]
[1757013544381,0.2082,4276.9,4276.8,0.3074]
[1757013544575,0.5399,4276.9,4276.8,0.7214]
[1757013545670,0.3317,4277.2,4276.9,0.3074]
[1757013545871,0.5399,4277.2,4277.1,0.7214]
[1757013546575,0.7557,4277.2,4277.1,0.7214]
[1757013546775,0.7557,4277.2,4276.8,0.3074]
[1757013546983,0.131,4277.0,4276.9,0.208]
[1757013547281,0.555,4277.0,4276.9,0.208]
[1757013547582,0.7557,4276.4,4276.0,3.2078]
[1757013547886,0.131,4276.5,4276.0,3.2078]
[1757013547887,0.7557,4276.1,4276.0,3.2078]
[1757013548384,0.7557,4276.1,4276.0,0.7214]
[1757013548783,0.7557,4276.1,4276.0,0.414]
[1757013549585,0.2082,4276.1,4276.0,0.8526]
[1757013549782,0.5399,4276.1,4276.0,0.7214]
[1757013550182,0.7557,4276.1,4276.0,0.7214]
[1757013550785,0.7557,4276.1,4276.0,0.414]
[1757013551690,0.7557,4276.1,4276.0,0.7214]
[1757013552994,0.7557,4276.1,4276.0,0.414]
[1757013553697,0.7557,4276.1,4276.0,0.7214]
[1757013555601,0.5399,4276.1,4276.0,0.7214]
[1757013555791,0.2082,4276.1,4276.0,0.8526]
[1757013555993,0.2082,4276.1,4276.0,4.0604]
[1757013556390,0.5399,4276.1,4276.0,4.0604]
[1757013557793,0.7557,4276.1,4276.0,3.929]
[1757013558298,0.5399,4276.1,4276.0,3.929]
[1757013559508,0.2082,4276.1,4276.0,4.0541]
[1757013560707,0.3203,4276.4,4276.0,4.0541]
[1757013560911,0.2017,4276.4,4276.3,0.4162]
[1757013561207,0.522,4276.4,4276.3,0.7234]
[1757013562603,3.2078,4276.8,4276.3,0.4162]
[1757013562804,0.522,4276.5,4276.4,0.7234]
[1757013563010,3.5281,4276.8,4276.4,0.4162]
[1757013563311,0.7373,4276.8,4276.7,3.9312]
[1757013563504,0.7373,4276.8,4276.7,0.1995]
[1757013564300,0.417,4276.4,4276.3,0.5067]
[1757013564500,0.7373,4276.4,4276.3,0.1995]
[1757013564706,0.1212,4276.5,4275.8,2.09268758]
[1757013564707,0.7373,4275.9,4275.8,2.09268758]
[1757013564910,0.417,4275.6,4275.5,0.7234]
[1757013565212,0.7373,4275.6,4275.5,0.7234]
[1757013567712,0.522,4275.6,4275.5,1.0865]
[1757013568014,0.522,4275.9,4275.8,0.7234]
[1757013568313,0.7373,4275.9,4275.8,0.7234]
[1757013569920,0.7373,4275.9,4275.8,0.1995]
[1757013571418,0.7373,4275.9,4275.8,0.7234]
[1757013572317,0.3203,4276.4,4275.9,0.3072]
[1757013572622,0.3203,4276.4,4276.3,0.7234]
[1757013572623,0.7373,4276.4,4276.3,0.7234]
[1757013574323,0.7373,4276.4,4276.3,0.4162]
[1757013574720,0.7373,4276.4,4276.3,0.7234]
[1757013575118,0.7373,4276.4,4276.3,0.1995]
[1757013576521,0.8585,4276.0,4275.9,0.4375]
[1757013576917,0.3203,4275.9,4275.7,3.2078]
[1757013577218,0.7373,4275.8,4275.7,3.2078]
[1757013577816,0.7373,4275.8,4275.7,0.1995]
[1757013578414,0.7373,4275.4,4275.3,0.1995]
[1757013580427,0.3203,4275.3,4275.1,5.30048758]
[1757013580621,0.7373,4275.2,4275.1,3.4073]
[1757013580826,0.7373,4275.2,4275.1,3.9312]
[1757013581022,0.522,4275.2,4275.1,3.9312]
[1757013581223,1.0435,4275.5,4275.4,0.4162]
[1757013581524,0.707,4275.5,4275.4,0.7234]
[1757013581727,1.0273,4275.5,4275.4,0.7234]
[1757013584627,1.2426,4275.5,4275.4,0.7234]
[1757013585926,0.5053,4275.5,4275.4,0.7234]
[1757013586128,0.5053,4275.5,4275.4,5.37823]
[1757013586426,3.3388,4277.0,4275.7,0.0876]
[1757013586628,0.3203,4276.4,4276.3,0.115]
[1757013586929,0.3203,4276.4,4276.3,2.21512982]
[1757013587729,0.3048,4276.9,4276.5,0.42083]
[1757013587930,0.3048,4276.9,4276.8,3.2832]
[1757013588130,0.5205,4276.9,4276.8,3.2832]
[1757013589433,0.3048,4276.9,4276.8,3.3067]
[1757013589826,0.3048,4276.9,4276.8,3.2832]
[1757013591328,0.3048,4276.9,4276.8,3.5212]
[1757013591632,0.3048,4276.9,4276.8,3.5447]
[1757013592031,0.3048,4276.9,4276.8,3.5212]
[1757013592835,0.3048,4276.9,4276.8,3.5447]
[1757013593926,0.2372,4278.0,4276.9,0.0235]
[1757013593927,0.3048,4277.4,4276.9,0.0235]
[1757013594235,0.5205,4277.4,4277.3,3.2832]
[1757013596230,0.3048,4277.4,4277.3,3.2832]
[1757013596425,0.3048,4277.4,4277.3,3.70395]
[1757013596629,0.1212,4278.0,4277.3,3.70395]
[1757013596630,0.3048,4277.9,4277.8,0.42069]
[1757013596835,3.2078,4279.2,4278.9,0.0754]
[1757013597138,0.1257,4279.5,4279.4,0.0754]
[1757013597331,0.4305,4279.5,4279.4,0.3134]
[1757013597530,0.6462,4279.5,4279.4,0.3134]
[1757013597726,0.852,4279.5,4279.4,3.4458]
[1757013598240,0.852,4279.5,4279.4,0.238]
[1757013598840,0.852,4279.5,4279.4,0.2757]
[1757013599137,0.6462,4279.5,4279.4,0.3134]
[1757013599335,0.3048,4279.9,4279.4,3.5447]
[1757013599536,0.1257,4280.0,4279.4,3.5212]
[1757013600041,0.3048,4279.9,4279.4,3.5212]
[1757013600237,0.3048,4279.8,4279.4,3.5212]
[1757013600437,0.1257,4279.5,4279.4,3.4458]
[1757013600642,0.3414,4279.5,4279.4,3.5212]
[1757013600834,0.6462,4279.5,4279.4,3.5212]
[1757013601344,0.852,4279.5,4279.4,3.5212]
[1757013602243,0.4305,4280.0,4279.9,0.0754]
[1757013602444,0.1257,4279.5,4279.4,3.2455]
[1757013602740,0.852,4279.5,4279.4,3.4835]
[1757013604137,0.6462,4279.5,4279.4,3.5212]
[1757013604534,0.4305,4279.5,4279.4,3.5212]
[1757013604733,0.3048,4279.9,4279.8,0.0754]
[1757013604937,0.5205,4279.9,4279.8,0.3134]
[1757013605337,0.7263,4279.9,4279.8,0.3134]
[1757013607245,0.7263,4279.9,4279.8,0.2757]
[1757013607643,0.7263,4279.9,4279.8,0.3134]
[1757013608039,0.5205,4279.9,4279.8,0.3134]
[1757013608241,3.3335,4280.5,4280.2,0.0754]
[1757013608242,0.3048,4280.3,4280.2,0.0754]
[1757013608440,0.5205,4280.3,4280.2,0.0754]
[1757013608745,0.7263,4280.3,4280.2,0.0754]
[1757013609046,0.7263,4280.3,4280.1,0.238]
[1757013609446,0.7263,4280.3,4280.2,0.0377]
[1757013610741,0.7263,4280.3,4280.2,0.0754]
[1757013610937,0.3048,4280.3,4280.2,0.49587]
[1757013611139,0.3048,4280.7,4280.6,0.0754]
[1757013611449,0.7263,4280.7,4280.6,0.2757]
[1757013611751,0.7263,4280.7,4280.6,0.238]
[1757013612352,0.5205,4280.7,4280.6,0.3134]
[1757013613048,0.5205,4280.7,4280.6,0.73383]
[1757013613249,0.5205,4280.7,4280.6,0.3134]
[1757013614452,0.5205,4280.7,4280.6,0.73383]
[1757013614745,0.7263,4280.7,4280.6,0.3134]
[1757013614947,0.1257,4281.0,4280.9,0.4204]
[1757013615148,0.2157,4281.4,4281.3,0.0754]
[1757013615445,0.852,4281.0,4280.9,3.4448]
[1757013617545,0.852,4281.0,4280.9,3.5437]
[1757013617546,0.4305,4281.0,4280.9,3.5437]
[1757013617752,0.3395,4281.5,4281.4,0.0392]
[1757013617953,0.3395,4281.5,4281.4,0.2762]
[1757013618345,0.5478,4281.5,4281.4,0.2762]
[1757013618540,0.5478,4281.5,4281.0,0.42038]
[1757013618541,0.8398,4281.5,4280.9,3.2078]
[1757013618747,0.8308,4281.0,4280.9,3.2078]
[1757013618946,0.8308,4281.0,4280.9,3.4448]
[1757013619654,0.8308,4281.0,4280.9,3.2078]
[1757013619856,0.8308,4281.0,4280.9,3.4448]
[1757013620343,0.8308,4281.0,4280.9,3.2078]
[1757013620544,0.8308,4281.0,4280.9,0.237]
[1757013621056,0.8308,4280.5,4280.4,3.247]
[1757013621353,0.8308,4280.5,4280.4,3.484]
[1757013621953,0.8308,4280.5,4280.4,3.247]
[1757013622252,0.8308,4280.5,4280.4,3.484]
[1757013622656,0.8308,4280.5,4280.4,0.237]
[1757013623354,0.292,4280.4,4280.3,3.2078]
[1757013623555,0.7141,4280.4,4280.3,3.2078]
[1757013624858,0.7141,4280.4,4280.2,0.237]
[1757013628255,0.7141,4279.3,4279.2,3.247]
[1757013628457,0.292,4279.3,4279.2,3.484]
[1757013629254,0.7141,4279.3,4279.2,3.4644]
[1757013629758,0.7141,4279.3,4279.2,3.4448]
[1757013630259,0.7141,4279.3,4279.2,0.237]
[1757013630460,0.1167,4279.5,4278.7,3.2078]
[1757013630461,0.7141,4278.9,4278.8,0.237]
[1757013630649,0.7141,4278.9,4278.8,0.2566]
[1757013630854,0.7141,4278.9,4278.8,0.2762]